bitfinex-derivatives/quotes_BNBF0:USTF0_20230901
["timestamp","ask_amount","ask_price","bid_price","bid_amount"]
[1693591235218,0.17349084,212.23,211.77,0.86761778]
[1693591235417,0.17349084,212.31,211.77,0.86761778]
[1693591235619,0.17349084,212.3,211.77,0.86761778]
[1693591235818,0.17349084,212.31,211.77,0.86761778]
[1693591236018,0.17349084,212.31,211.77,0.9448718]
[1693591236218,0.17349084,212.31,211.78,0.86761778]
[1693591236519,0.17349084,212.3,211.78,0.86761778]
[1693591236719,0.17349084,212.32,211.78,0.86761778]
[1693591236919,0.17349084,212.31,211.77,0.9448718]
[1693591237116,0.17349084,212.3,211.78,0.86761778]
[1693591237315,0.17349084,212.29,211.79,0.86761778]
[1693591237517,5.26745178,212.32,211.77,0.86761778]
[1693591237718,0.17349084,212.31,211.78,0.86761778]
[1693591237925,0.17349084,212.31,211.77,0.86761778]
[1693591238119,0.17349084,212.31,211.78,0.86761778]
[1693591238319,0.17349084,212.31,211.77,0.86761778]
[1693591238622,0.17349084,212.3,211.77,0.86761778]
[1693591238820,0.17349084,212.32,211.77,0.86761778]
[1693591239022,0.17349084,212.31,211.77,0.86761778]
[1693591239215,0.17349084,212.32,211.77,0.86761778]
[1693591239821,5.26745178,212.32,211.77,0.86761778]
[1693591240021,0.17349084,212.31,211.77,0.86761778]
[1693591241817,0.17349084,212.31,211.76,0.86761778]
[1693591242222,5.26745178,212.31,211.76,0.86761778]
[1693591242525,0.17349084,212.3,211.76,0.86761778]
[1693591243351,0.17349084,212.3,211.76,0.9448718]
[1693591243525,5.09396094,212.32,211.54,3.77164724]
[1693591243526,0.17349084,212.31,211.77,0.86761778]
[1693591243720,0.17349084,212.29,211.76,0.86761778]
[1693591244026,0.17349084,212.28,211.76,0.86761778]
[1693591244324,0.17349084,212.27,211.76,0.86761778]
[1693591244525,0.17349084,212.31,211.76,0.86761778]
[1693591244719,0.17349084,212.3,211.76,0.86761778]
[1693591246127,5.26745178,212.3,211.76,0.86761778]
[1693591246327,0.17349084,212.29,211.76,0.86761778]
[1693591246528,0.17349084,212.29,211.75,0.86761778]
[1693591246728,0.17349084,212.29,211.76,0.86761778]
[1693591248727,0.17349084,212.29,211.75,0.9448718]
[1693591248928,0.17349084,212.29,211.76,0.86761778]
[1693591250826,0.17349084,212.29,211.75,0.86761778]
[1693591251023,0.17349084,212.29,211.75,0.9448718]
[1693591251223,0.17349084,212.29,211.76,0.86761778]
[1693591251630,0.17349084,212.29,211.75,0.9448718]
[1693591251833,0.17349084,212.29,211.76,0.86761778]
[1693591252130,0.17349084,212.28,211.76,0.9448718]
[1693591252331,0.17349084,212.3,211.77,0.86761778]
[1693591252526,0.17349084,212.29,211.77,0.9448718]
[1693591252723,0.17349084,212.28,211.78,0.86761778]
[1693591252928,0.17349084,212.31,211.78,0.86761778]
[1693591253233,0.17349084,212.3,211.78,0.86761778]
[1693591253432,0.17349084,212.31,211.78,0.86761778]
[1693591253632,0.17349084,212.3,211.78,0.86761778]
[1693591253824,0.17349084,212.31,211.78,0.86761778]
[1693591255732,0.17349084,212.3,211.78,0.86761778]
[1693591255928,0.17349084,212.32,211.78,0.86761778]
[1693591256232,0.17349084,212.31,211.78,0.86761778]
[1693591256433,0.17349084,212.32,211.78,0.86761778]
[1693591256631,0.17349084,212.31,211.78,0.86761778]
[1693591257934,0.17349084,212.31,211.78,0.9448718]
[1693591258129,0.17349084,212.31,211.79,0.86761778]
[1693591259632,0.17349084,212.3,211.79,0.86761778]
[1693591259836,5.09396094,212.33,211.79,0.86761778]
[1693591259837,0.17349084,212.29,211.79,0.86761778]
[1693591260136,0.17349084,212.28,211.79,0.86761778]
[1693591260336,5.09396094,212.33,211.79,0.86761778]
[1693591260337,0.17349084,212.32,211.79,0.86761778]
[1693591260638,0.17349084,212.31,211.79,0.9448718]
[1693591260837,5.09396094,212.33,211.79,0.9448718]
[1693591260838,0.17349084,212.32,211.8,0.86761778]
[1693591261336,0.17349084,212.32,211.83,0.07725402]
[1693591261537,0.17349084,212.35,211.84,0.86761778]
[1693591261737,7.13154531,212.39,211.84,0.86761778]
[1693591261738,0.17349084,212.34,211.84,0.86761778]
[1693591261932,0.17349084,212.37,211.84,0.86761778]
[1693591262133,0.17349084,212.37,211.85,0.86761778]
[1693591262330,0.17349084,212.37,211.86,0.86761778]
[1693591262537,0.17349084,212.37,211.84,0.86761778]
[1693591262838,0.17349084,212.37,211.85,0.86761778]
[1693591263040,0.17349084,212.37,211.84,0.86761778]
[1693591263338,0.17349084,212.37,211.85,0.86761778]
[1693591263538,0.17349084,212.37,211.86,0.86761778]
[1693591263740,0.17349084,212.37,211.84,0.86761778]
[1693591263934,0.17349084,212.37,211.83,0.07725402]
[1693591263935,0.17349084,212.36,211.85,0.86761778]
[1693591264136,0.17349084,212.35,211.86,0.86761778]
[1693591264341,0.17349084,212.34,211.87,0.86761778]
[1693591264539,0.17349084,212.33,211.88,0.86761778]
[1693591264742,0.17349084,212.32,211.84,0.07725402]
[1693591264940,0.17349084,212.31,211.85,0.86701421]
[1693591265140,0.17349084,212.39,211.85,0.86701421]
[1693591265341,0.17349084,212.38,211.85,0.86701421]
[1693591266938,0.17349084,212.39,211.85,0.86701421]
[1693591267137,0.17349084,212.38,211.85,0.86701421]
[1693591267342,0.17349084,212.39,211.85,0.94426823]
[1693591267542,0.17349084,212.39,211.86,0.86701421]
[1693591267742,0.17349084,212.38,211.86,0.86701421]
[1693591267945,0.17349084,212.39,211.86,0.86701421]
[1693591268145,0.17349084,212.38,211.86,0.86701421]
[1693591268345,0.17349084,212.39,211.86,0.94426823]
[1693591268539,0.17349084,212.38,211.87,0.86701421]
[1693591268742,0.17349084,212.39,211.87,0.86701421]
[1693591268943,0.17349084,212.38,211.87,0.86701421]
[1693591269143,5.09396094,212.4,211.87,0.86701421]
[1693591269144,0.17349084,212.39,211.87,0.86701421]
[1693591269340,0.17349084,212.38,211.87,0.86701421]
[1693591269539,5.09396094,212.4,211.87,0.86701421]
[1693591269540,0.17349084,212.39,211.87,0.86701421]
[1693591269745,0.17349084,212.38,211.87,0.86701421]
[1693591269941,0.17349084,212.38,211.88,0.07725402]
[1693591270145,0.17349084,212.38,211.87,0.86701421]
[1693591270146,0.17349084,212.38,211.89,0.07725402]
[1693591270650,0.17349084,212.39,211.89,0.94426823]
[1693591270949,0.17349084,212.38,211.9,0.86701421]
[1693591271249,0.17349084,212.37,211.9,0.86701421]
[1693591271450,0.17349084,212.46,211.89,0.94426823]
[1693591271647,0.17349084,212.45,211.9,0.86701421]
[1693591271847,0.17349084,212.46,211.9,0.86701421]
[1693591272043,0.17349084,212.45,211.9,0.86701421]
[1693591272247,0.17349084,212.44,211.9,0.86701421]
[1693591272450,0.17349084,212.43,211.91,0.86701421]
[1693591272749,0.17349084,212.42,211.92,0.86701421]
[1693591273049,0.17349084,212.41,211.88,0.07725402]
[1693591273249,0.17349084,212.46,211.89,0.86693743]
[1693591273450,0.17349084,212.45,211.89,0.86693743]
[1693591273651,0.17349084,212.47,211.89,0.86693743]
[1693591273847,0.17349084,212.46,211.89,0.86693743]
[1693591274042,0.17349084,212.47,211.89,0.86693743]
[1693591274242,0.17349084,212.46,211.89,0.86693743]
[1693591274442,0.17349084,212.45,211.89,0.86693743]
[1693591274643,0.17349084,212.44,211.89,0.86693743]
[1693591274848,0.17349084,212.48,211.89,0.86693743]
[1693591275044,0.17349084,212.47,211.89,0.86693743]
[1693591275245,0.17349084,212.48,211.89,0.86693743]
[1693591275448,0.17349084,212.47,211.89,0.86693743]
[1693591275646,0.17349084,212.49,211.89,0.86693743]
[1693591275844,0.17349084,212.48,211.89,0.86693743]
[1693591276048,0.17349084,212.49,211.89,0.86693743]
[1693591279750,0.17349084,212.49,211.93,0.07725402]
[1693591280047,0.17349084,212.49,211.94,0.94419145]
[1693591280253,0.17349084,212.49,211.95,0.86693743]
[1693591280654,0.17349084,212.49,211.94,0.94419145]
[1693591280952,0.17349084,212.49,211.95,0.86693743]
[1693591281147,0.17349084,212.49,211.93,0.07725402]
[1693591281148,0.17349084,212.49,211.94,0.86693743]
[1693591281350,0.17349084,212.49,211.95,0.86693743]
[1693591281554,0.17349084,212.49,211.94,0.86693743]
[1693591281754,0.17349084,212.49,211.95,0.86693743]
[1693591281954,0.17349084,212.49,211.94,0.86693743]
[1693591282252,0.17349084,212.49,211.95,0.86693743]
[1693591282453,0.17349084,212.49,211.96,0.86693743]
[1693591282755,0.17349084,212.49,211.97,0.86693743]
[1693591282952,0.17349084,212.49,211.98,0.86693743]
[1693591283253,0.17349084,212.49,211.99,0.86693743]
[1693591283453,0.17349084,212.49,211.93,0.07725402]
[1693591283650,0.17349084,212.49,211.94,0.86667459]
[1693591286554,0.17349084,212.49,211.94,0.94392861]
[1693591286756,0.17349084,212.49,211.95,0.86667459]
[1693591287957,0.17349084,212.49,211.94,0.86667459]
[1693591288157,0.17349084,212.49,211.95,0.86667459]
[1693591288359,0.17349084,212.49,211.94,0.94392861]
[1693591288661,0.17349084,212.49,211.95,0.86667459]
[1693591289260,0.17349084,212.49,211.94,0.94392861]
[1693591289559,0.17349084,212.49,211.95,0.86667459]
[1693591290961,5.09396094,212.57,211.95,0.94392861]
[1693591291159,0.17333372,212.56,211.96,0.86667459]
[1693591291364,0.17333372,212.56,211.96,0.94392861]
[1693591291566,0.17333372,212.56,211.91,0.07725402]
[1693591291757,0.17333372,212.56,211.92,0.86691949]
[1693591291960,0.17333372,212.56,211.91,0.86691949]
[1693591292160,7.13154531,212.53,211.92,0.86691949]
[1693591292360,5.09396094,212.49,211.93,0.86691949]
[1693591292561,0.17333372,212.48,211.9,0.07725402]
[1693591292762,0.17333372,212.48,211.91,0.86693939]
[1693591293368,0.17333372,212.48,211.91,0.94419341]
[1693591293560,0.17333372,212.48,211.92,0.86693939]
[1693591293758,0.17333372,212.48,211.69,3.77039613]
[1693591293759,5.09396094,212.46,211.9,0.07725402]
[1693591293959,0.17333372,212.45,211.91,0.86697481]
[1693591294164,0.17333372,212.45,211.89,0.07725402]
[1693591294364,0.17333372,212.45,211.9,0.86698291]
[1693591294768,0.17333372,212.45,211.9,0.94423693]
[1693591294970,0.17333372,212.45,211.91,0.86698291]
[1693591298867,5.26729466,212.45,211.91,0.86698291]
[1693591299069,0.17333372,212.44,211.91,0.86698291]
[1693591300071,5.26729466,212.44,211.91,0.86698291]
[1693591300271,0.17333372,212.43,211.91,0.86698291]
[1693591300672,0.17333372,212.43,211.9,0.86698291]
[1693591300873,0.17333372,212.43,211.91,0.86698363]
[1693591302679,0.17333372,212.43,211.89,0.07725402]
[1693591302881,0.17333372,212.43,211.9,0.86701109]
[1693591303281,0.17333372,212.43,211.87,0.07725402]
[1693591303483,5.09396094,212.37,211.82,0.07725402]
[1693591303786,0.17333372,212.36,211.83,0.8672944]
[1693591304184,0.17333372,212.36,211.81,0.07725402]
[1693591304378,0.17333372,212.36,211.82,0.86730778]
[1693591304779,0.17333372,212.36,211.81,0.86730778]
[1693591305088,5.26729466,212.36,211.82,0.86730778]
[1693591305287,0.17333372,212.35,211.82,0.86730778]
[1693591305588,0.17333372,212.35,211.79,0.07725402]
[1693591305884,0.17333372,212.35,211.8,0.86730796]
[1693591306285,0.17333372,212.37,211.8,0.86730796]
[1693591306484,0.17333372,212.36,211.8,0.86730796]
[1693591306683,5.09396094,212.38,211.78,0.07725402]
[1693591306684,0.17333372,212.37,211.79,0.86730796]
[1693591306884,0.17333372,212.36,211.8,0.86730796]
[1693591307181,0.17333372,212.36,211.78,0.07725402]
[1693591307182,0.17333372,212.35,211.81,0.86730796]
[1693591307386,0.17333372,212.37,211.79,0.86730796]
[1693591307586,0.17333372,212.37,211.76,0.07725402]
[1693591307587,0.17333372,212.36,211.8,0.86730796]
[1693591307787,0.17333372,212.37,211.78,0.86730796]
[1693591307986,0.17333372,212.36,211.79,0.86730796]
[1693591308187,0.17333372,212.37,211.78,0.86730796]
[1693591308385,0.17333372,212.36,211.76,0.07725402]
[1693591308581,7.30487903,212.37,211.77,0.86755]
[1693591308783,5.09396094,212.34,211.72,0.86755]
[1693591309088,0.17333372,212.33,211.73,0.86755209]
[1693591309283,0.17333372,212.33,211.72,0.86755209]
[1693591309482,0.17333372,212.33,211.65,0.15450805]
[1693591309483,0.17333372,212.33,211.73,0.86755209]
[1693591309686,0.17333372,212.36,211.7,0.86755209]
[1693591309886,0.17333372,212.35,211.71,0.86755209]
[1693591310088,0.17333372,212.36,211.7,0.86755209]
[1693591310284,0.17333372,212.35,211.71,0.86755209]
[1693591310484,0.17333372,212.36,211.68,0.86755209]
[1693591310683,0.17333372,212.35,211.69,0.86755209]
[1693591310889,0.17333372,212.38,211.68,0.94480611]
[1693591311188,0.17333372,212.37,211.69,0.86755209]
[1693591311389,0.17333372,212.38,211.69,0.86755209]
[1693591311685,0.17333372,212.37,211.69,0.86755209]
[1693591311889,0.17333372,212.36,211.7,0.86755209]
[1693591312090,0.17333372,212.35,211.71,0.86755209]
[1693591312289,0.17333372,212.34,211.72,0.86755209]
[1693591312484,0.17333372,212.33,211.73,0.86755209]
[1693591312790,0.17333372,212.32,211.74,0.86755209]
[1693591312985,0.17333372,212.4,211.75,0.86755209]
[1693591313294,0.17333372,212.39,211.76,0.86755209]
[1693591313490,0.17333372,212.4,211.67,0.86755209]
[1693591313798,0.17333372,212.39,211.68,0.86755209]
[1693591314092,0.17333372,212.38,211.69,0.86755209]
[1693591314391,0.17333372,212.37,211.7,0.86755209]
[1693591314588,0.17333372,212.36,211.71,0.86755209]
[1693591314789,0.17333372,212.4,211.64,0.86755209]
[1693591314990,0.17333372,212.39,211.65,0.86755209]
[1693591315286,0.17333372,212.38,211.66,0.86755209]
[1693591315496,0.17333372,212.38,211.67,0.86755209]
[1693591315685,0.17333372,212.4,211.64,0.86755209]
[1693591315890,0.17333372,212.39,211.63,0.07725402]
[1693591316091,0.17333372,212.42,211.64,0.86755209]
[1693591316394,0.17333372,212.41,211.64,0.86755209]
[1693591316689,0.17333372,212.4,211.64,0.86755209]
[1693591316992,0.17333372,212.39,211.64,0.86755209]
[1693591317195,0.17333372,212.43,211.64,0.86755209]
[1693591317392,7.13154531,212.47,211.64,0.86755209]
[1693591317393,0.17333372,212.42,211.64,0.86755209]
[1693591317596,0.17333372,212.44,211.64,0.86755209]
[1693591317795,0.17333372,212.43,211.64,0.86755209]
[1693591317993,0.17333372,212.44,211.64,0.86755209]
[1693591318294,0.17333372,212.43,211.64,0.86755209]
[1693591318494,0.17333372,212.42,211.64,0.86755209]
[1693591318696,0.17333372,212.45,211.64,0.86755209]
[1693591318892,0.17333372,212.44,211.64,0.86755209]
[1693591319094,0.17333372,212.45,211.64,0.86755209]
[1693591319296,0.17333372,212.44,211.64,0.94480611]
[1693591319495,0.17333372,212.45,211.65,0.86755209]
[1693591319689,0.17333372,212.44,211.64,0.07725402]
[1693591319890,0.17333372,212.45,211.65,0.86755209]
[1693591320098,0.17333372,212.44,211.65,0.86755209]
[1693591320394,0.17333372,212.43,211.65,0.86755209]
[1693591320594,0.17333372,212.44,211.65,0.86755209]
[1693591320795,0.17333372,212.43,211.65,0.86755209]
[1693591320990,0.17333372,212.44,211.65,0.86755209]
[1693591321196,0.17333372,212.43,211.65,0.86755209]
[1693591321401,0.17333372,212.42,211.65,0.86755209]
[1693591321602,0.17333372,212.45,211.65,0.86755209]
[1693591322502,5.26729466,212.45,211.65,0.86755209]
[1693591322703,0.17333372,212.44,211.65,0.86755209]
[1693591323299,0.17333372,212.44,211.64,4.6403179]
[1693591323500,0.17333372,212.44,211.65,0.86755209]
[1693591323801,0.17333372,212.44,211.66,0.86755209]
[1693591323997,0.17333372,212.44,211.67,0.86755209]
[1693591324202,5.09396094,212.43,211.68,0.86755209]
[1693591324403,0.17333372,212.42,211.69,0.86755209]
[1693591324603,5.26729466,212.42,211.7,0.86755209]
[1693591324803,0.17333372,212.41,211.71,0.86755209]
[1693591325003,0.17333372,212.41,211.72,0.86755209]
[1693591325203,0.17333372,212.41,211.73,0.86755209]
[1693591325402,0.17333372,212.41,211.63,0.07725402]
[1693591325403,0.17333372,212.41,211.74,0.86755209]
[1693591325605,0.17333372,212.41,211.62,3.85013777]
[1693591325807,5.26729466,212.41,211.63,0.86768055]
[1693591326007,0.17333372,212.4,211.62,0.07725402]
[1693591326306,0.17333372,212.4,211.63,0.94493457]
[1693591326506,0.17333372,212.4,211.64,0.86768055]
[1693591327207,5.09396094,212.39,211.64,0.86768055]
[1693591327402,0.17333372,212.38,211.64,0.86768055]
[1693591328508,0.17333372,212.38,211.64,0.94493457]
[1693591328810,0.17333372,212.38,211.65,0.86768055]
[1693591329505,0.17333372,212.38,211.66,0.86768055]
[1693591329707,0.17333372,212.38,211.64,0.86768055]
[1693591329904,0.17333372,212.38,211.65,0.86768055]
[1693591330106,0.17333372,212.38,211.64,0.86768055]
[1693591330307,5.26729466,212.38,211.65,0.86768055]
[1693591330508,0.17333372,212.37,211.65,0.86768055]
[1693591331208,0.17333372,212.37,211.64,0.86768055]
[1693591331409,0.17333372,212.37,211.65,0.86768055]
[1693591332204,5.26729466,212.37,211.65,0.86768055]
[1693591332409,0.17333372,212.36,211.65,0.86768055]
[1693591333306,7.13154531,212.33,211.6,0.94493457]
[1693591333510,0.17333372,212.32,211.61,0.86768055]
[1693591334411,5.09396094,212.3,211.62,0.86768055]
[1693591334610,0.17333372,212.29,211.62,0.86768055]
[1693591335407,5.09396094,212.29,211.62,0.07725402]
[1693591335613,0.17333372,212.28,211.63,0.86768055]
[1693591337314,0.17333372,212.27,211.64,0.07725402]
[1693591337514,12.22550625,212.3,211.65,0.86768055]
[1693591337515,0.17333372,212.29,211.65,0.86768055]
[1693591337711,0.17333372,212.28,211.65,0.86768055]
[1693591338010,0.17333372,212.27,211.65,0.86768055]
[1693591338213,0.17333372,212.29,211.64,0.86768055]
[1693591338413,0.17333372,212.28,211.65,0.86768055]
[1693591338615,0.17333372,212.27,211.66,0.86768055]
[1693591338809,5.26729466,212.26,211.66,0.86768055]
[1693591339013,0.17333372,212.25,211.66,0.86768055]
[1693591339514,0.17333372,212.26,211.66,0.86768055]
[1693591340313,0.17333372,212.26,211.66,0.94493457]
[1693591340613,0.17333372,212.26,211.67,0.86768055]
[1693591340813,5.26729466,212.26,211.67,0.86768055]
[1693591341012,0.17333372,212.25,211.67,0.86768055]
[1693591341213,0.17333372,212.26,211.69,0.07725402]
[1693591341414,0.17333372,212.25,211.7,0.94493457]
[1693591341710,0.17333372,212.24,211.71,0.86768055]
[1693591341915,0.17333372,212.23,211.71,0.86768055]
[1693591342116,0.17333372,212.22,211.71,0.86768055]
[1693591342311,5.26729466,212.3,211.72,0.07725402]
[1693591342520,0.17333372,212.29,211.73,0.86768055]
[1693591344918,0.17333372,212.29,211.73,0.94493457]
[1693591345120,0.17333372,212.29,211.73,0.07725402]
[1693591345415,5.26729466,212.29,211.73,0.07725402]
[1693591345619,0.17333372,212.28,211.73,0.07725402]
[1693591347120,0.17333372,212.28,211.74,0.07725402]
[1693591348321,0.17333372,212.28,211.75,0.07725402]
[1693591348718,0.17333372,212.27,211.76,0.07725402]
[1693591348938,0.17333372,212.26,211.76,0.07725402]
[1693591349116,0.17333372,212.25,211.76,0.07725402]
[1693591349319,0.17333372,212.24,211.76,0.07725402]
[1693591349622,0.17333372,212.23,211.76,0.07725402]
[1693591349821,0.17333372,212.29,211.76,0.07725402]
[1693591350123,5.09396094,212.3,211.76,0.07725402]
[1693591350124,0.17333372,212.28,211.76,0.07725402]
[1693591350317,0.17333372,212.27,211.76,0.07725402]
[1693591350526,0.17333372,212.26,211.76,0.07725402]
[1693591350720,0.17333372,212.25,211.76,0.07725402]
[1693591350919,0.17333372,212.24,211.76,0.07725402]
[1693591351222,0.17333372,212.23,211.76,0.07725402]
[1693591351423,5.26729466,212.29,211.76,0.07725402]
[1693591351624,0.17333372,212.28,211.76,0.07725402]
[1693591353118,0.17333372,212.28,211.75,0.07725402]
[1693591353624,0.17333372,212.28,211.76,0.07725402]
[1693591355624,0.17333372,212.28,211.75,0.07725402]
[1693591356324,5.09396094,212.27,211.75,0.07725402]
[1693591356524,0.17333372,212.26,211.75,0.07725402]
[1693591358425,5.26729466,212.26,211.74,0.07725402]
[1693591358622,0.17333372,212.25,211.74,0.07725402]
[1693591359426,5.26729466,212.25,211.73,0.07725402]
[1693591359624,0.17333372,212.24,211.74,0.86769293]
[1693591359824,0.17333372,212.24,211.73,0.07725402]
[1693591360424,0.17333372,212.24,211.72,0.07725402]
[1693591360625,0.17333372,212.24,211.73,0.86769394]
[1693591360825,5.26729466,212.24,211.73,0.86769394]
[1693591361128,0.17333372,212.23,211.73,0.86769394]
[1693591361328,0.17333372,212.23,211.71,0.07725402]
[1693591361529,0.17333372,212.23,211.72,0.86772857]
[1693591361728,0.17333372,212.23,211.71,0.07725402]
[1693591361925,0.17333372,212.23,211.72,0.86771505]
[1693591362125,0.17333372,212.23,211.71,0.07725402]
[1693591362323,5.09396094,212.21,211.71,0.07725402]
[1693591362524,5.09396094,212.21,211.63,0.15450805]
[1693591362525,0.17333372,212.2,211.72,0.86771944]
[1693591362727,0.17333372,212.2,211.7,0.86771944]
[1693591363029,0.17333372,212.2,211.71,0.86772599]
[1693591363229,0.17333372,212.2,211.69,0.07725402]
[1693591363430,5.26729466,212.2,211.7,0.86773032]
[1693591363728,0.17333372,212.19,211.7,0.86773032]
[1693591363929,0.17333372,212.19,211.71,0.86773032]
[1693591364125,0.17333372,212.19,211.69,0.86773032]
[1693591364330,0.17333372,212.19,211.7,0.86774568]
[1693591364525,0.17333372,212.19,211.69,0.86774568]
[1693591364726,0.17333372,212.19,211.7,0.86774568]
[1693591365029,0.17333372,212.19,211.71,0.86774568]
[1693591365227,0.17333372,212.19,211.69,0.86774568]
[1693591365426,0.17333372,212.19,211.7,0.8677442]
[1693591365629,0.17333372,212.19,211.71,0.8677442]
[1693591365824,0.17333372,212.19,211.69,0.8677442]
[1693591366028,0.17333372,212.19,211.7,0.86775031]
[1693591366230,0.17333372,212.19,211.71,0.86775031]
[1693591366423,0.17333372,212.19,211.68,0.07725402]
[1693591366424,0.17333372,212.19,211.69,0.86775031]
[1693591366626,0.17333372,212.19,211.7,0.86774058]
[1693591366827,0.17333372,212.19,211.71,0.86774058]
[1693591367131,0.17333372,212.19,211.72,0.86774058]
[1693591367332,0.17333372,212.19,211.68,0.07725402]
[1693591367533,0.17333372,212.19,211.69,0.86772731]
[1693591368336,0.17333372,212.19,211.46,3.77320055]
[1693591368337,0.17333372,212.19,211.62,0.07725402]
[1693591368535,7.13154531,212.16,211.63,0.86802347]
[1693591368727,0.17333372,212.15,211.64,0.86802347]
[1693591369034,0.17333372,212.15,211.65,0.86802347]
[1693591369229,0.17333372,212.15,211.64,0.86802347]
[1693591369435,5.09396094,212.14,211.65,0.86802347]
[1693591369635,5.09396094,212.14,205.33,4.72235255]
[1693591369636,0.17333372,212.13,211.67,0.07725402]
[1693591369830,0.17333372,212.12,211.68,0.86802347]
[1693591370036,0.17333372,212.11,211.68,0.94527749]
[1693591370236,0.17333372,212.1,211.69,0.86802347]
[1693591370532,5.09396094,212.19,211.69,0.86802347]
[1693591370533,0.17333372,212.09,211.69,0.86802347]
[1693591370735,0.17333372,212.18,211.69,0.86802347]
[1693591370930,0.17333372,212.17,211.69,0.86802347]
[1693591373037,5.26729466,212.17,211.69,0.94527749]
[1693591373238,0.17333372,212.16,211.7,0.86802347]
[1693591374034,5.26729466,212.16,211.7,0.94527749]
[1693591374233,0.17333372,212.15,211.71,0.86802347]
[1693591376833,5.26729466,212.15,211.71,0.86802347]
[1693591377039,0.17333372,212.14,211.71,0.86802347]
[1693591382237,0.17333372,212.14,211.7,0.07725402]
[1693591382238,0.17333372,212.14,211.69,0.07725402]
[1693591382446,0.17333372,212.14,211.7,0.86778477]
[1693591383042,0.17333372,212.14,211.7,0.94503879]
[1693591383237,0.17333372,212.14,211.71,0.86778477]
[1693591385950,0.17333372,212.14,211.71,0.94503879]
[1693591386150,0.17333372,212.14,211.71,0.07725402]
[1693591391652,0.17333372,212.14,211.7,0.07725402]
[1693591392254,0.17333372,212.14,211.71,0.86774524]
[1693591392655,0.17333372,212.14,211.71,0.94499926]
[1693591392855,0.17333372,212.14,211.71,0.07725402]
[1693591394257,0.17333372,212.14,211.72,0.86772697]
[1693591394459,0.17333372,212.14,211.72,0.94498099]
[1693591394656,0.17333372,212.13,211.73,0.86770724]
[1693591394860,5.09396094,212.16,211.73,0.86770724]
[1693591394861,0.17333372,212.15,211.73,0.86770724]
[1693591395056,0.17333372,212.14,211.73,0.86770724]
[1693591395264,0.17333372,212.13,211.73,0.86770724]
[1693591395459,0.17333372,212.12,211.73,0.86770724]
[1693591395660,0.17333372,212.11,211.77,0.07725402]
[1693591395958,0.17333372,212.1,211.78,0.86770724]
[1693591396161,0.17333372,212.09,211.78,0.86770724]
[1693591396361,0.17333372,212.2,211.78,0.86770724]
[1693591396557,0.1734919,212.19,211.78,0.86770724]
[1693591396758,0.1734919,212.2,211.78,0.86770724]
[1693591397057,0.1734919,212.19,211.78,0.86770724]
[1693591397362,0.1734919,212.18,211.76,0.07725402]
[1693591397663,0.1734919,212.17,211.77,0.86745758]
[1693591397960,0.1734919,212.16,211.77,0.86745758]
[1693591398163,0.1734919,212.15,211.77,0.86745758]
[1693591398361,0.1734919,212.15,211.74,0.07725402]
[1693591398362,0.1734919,212.22,211.75,0.86745758]
[1693591398657,0.1734919,212.21,211.76,0.86745758]
[1693591398862,0.1734919,212.22,211.75,0.86745758]
[1693591399062,0.1734919,212.21,211.76,0.86745758]
[1693591399258,0.1734919,212.23,211.75,0.86745758]
[1693591399562,5.09396094,212.24,211.76,0.86745758]
[1693591399563,0.1734919,212.22,211.76,0.86745758]
[1693591399757,0.1734919,212.21,211.77,0.86745758]
[1693591399958,0.1734919,212.2,211.78,0.86745758]
[1693591400160,0.1734919,212.19,211.74,0.07725402]
[1693591400463,5.09396094,212.25,211.75,0.86745566]
[1693591400464,0.1734919,212.18,211.75,0.86745566]
[1693591400660,0.1734919,212.24,211.75,0.86745566]
[1693591400862,0.1734919,212.23,211.75,0.86745566]
[1693591401061,0.1734919,212.24,211.75,0.86745566]
[1693591401257,0.1734919,212.23,211.74,0.86745566]
[1693591401465,0.1734919,212.22,211.75,0.86745566]
[1693591401660,0.1734919,212.21,211.76,0.86745566]
[1693591401860,0.1734919,212.2,211.77,0.86745566]
[1693591402061,0.1734919,212.19,211.78,0.86745566]
[1693591402259,5.09396094,212.26,211.73,0.07725402]
[1693591402260,0.1734919,212.18,211.73,0.07725402]
[1693591402563,0.1734919,212.18,211.58,0.51502684]
[1693591402564,0.1734919,212.17,211.74,0.86745956]
[1693591402760,0.1734919,212.16,211.68,0.07725402]
[1693591402961,0.1734919,212.25,211.69,0.86768619]
[1693591403259,0.1734919,212.24,211.69,0.86768619]
[1693591403457,0.1734919,212.25,211.69,0.86768619]
[1693591403661,7.30503721,212.25,211.69,0.86768619]
[1693591403857,5.09396094,212.22,211.69,0.86768619]
[1693591404061,0.1734919,212.21,211.69,0.94494021]
[1693591404255,0.1734919,212.21,211.7,0.86768619]
[1693591404461,0.1734919,212.21,211.69,0.86768619]
[1693591404658,0.1734919,212.21,211.7,0.86768619]
[1693591404862,0.1734919,212.21,211.69,0.86768619]
[1693591405058,0.1734919,212.21,211.7,0.86768619]
[1693591405264,5.09396094,212.2,211.69,0.86768619]
[1693591405464,0.1734919,212.19,211.7,0.86768619]
[1693591405665,0.1734919,212.19,211.71,0.86768619]
[1693591405865,0.1734919,212.19,211.72,0.86768619]
[1693591406067,0.1734919,212.19,211.67,0.07725402]
[1693591406368,0.1734919,212.19,211.68,0.86772244]
[1693591407166,0.1734919,212.19,211.68,0.94497646]
[1693591407467,0.1734919,212.19,211.69,0.86772244]